fUST/lending_fUST_20260115
["ID","MTS","AMOUNT","RATE_DAILY","PERIOD"]
[401990936,1768444240475,-151.02787374,0.00015,2]
[401990937,1768444240484,-91114.35744577,0.00015,7]
[401990938,1768444240493,-800.0,0.00015068,2]
[401990939,1768444240502,-855.0,0.00015142,2]
[401990940,1768444240510,-1200.0,0.00015316,2]
[401990941,1768444240519,-493.74297815,0.00015342,2]
[401990942,1768444240527,-2065.26822594,0.00015342,2]
[401990943,1768444240536,-2000.0,0.00015342,2]
[401990944,1768444240545,-2061.32249094,0.00015342,2]
[401990945,1768444240555,-504.85024315,0.00015342,2]
[401990946,1768444240565,-2000.0,0.00015342,2]
[401990947,1768444240573,-2000.0,0.00015342,2]
[401990948,1768444240582,-2000.0,0.00015342,2]
[401990949,1768444240591,-2000.0,0.00015342,2]
[401990950,1768444240600,-2500.0,0.00015464,2]
[401990951,1768444240608,-1915.99306572,0.00015464,2]
[401990952,1768444240617,-2500.0,0.00015464,2]
[401990953,1768444240625,-1675.11135247,0.00015464,2]
[401990954,1768444240634,-2500.0,0.00015464,2]
[401990955,1768444240643,-2500.0,0.00015464,2]
[401990956,1768444240652,-2500.0,0.00015464,2]
[401990957,1768444240660,-2500.0,0.00015464,2]
[401990958,1768444240669,-2500.0,0.00015464,2]
[401990959,1768444240678,-2500.0,0.00015464,2]
[401990960,1768444240686,-1500.0,0.00015864,2]
[401990961,1768444240695,-2500.0,0.0001589,2]
[401990962,1768444240703,-714.25404324,0.0001589,2]
[401990963,1768444240713,-2500.0,0.0001589,2]
[401990964,1768444240721,-2500.0,0.0001589,2]
[401990965,1768444240730,-2500.0,0.0001589,2]
[401990966,1768444240739,-215.91779165,0.00016,2]
[401990967,1768444240747,-3000.0,0.00016012,2]
[401990968,1768444240758,-3000.0,0.00016012,2]
[401990969,1768444240769,-696.8783275,0.00016012,2]
[401990970,1768444240778,-3000.0,0.00016012,2]
[401990971,1768444240787,-3000.0,0.00016012,2]
[401990972,1768444240796,-3000.0,0.00016012,2]
[401990973,1768444240806,-3000.0,0.00016012,2]
[401990974,1768444240814,-3000.0,0.00016012,2]
[401990975,1768444240823,-418.46769142,0.00016155,2]
[401990976,1768444240833,-1600.0,0.00016164,2]
[401990977,1768444240842,-864.0,0.00016255,2]
[401990978,1768444240851,-1800.0,0.00016412,2]
[401990979,1768444240860,-500.0,0.00016438,2]
[401990980,1768444240869,-500.0,0.00016438,2]
[401990981,1768444240877,-500.0,0.00016438,2]
[401990982,1768444240887,-296.64294423,0.00016438,2]
[401990983,1768444240895,-200.0,0.00016438,2]
[401990984,1768444240904,-164.30818849,0.00016438,2]
[401990985,1768444240914,-548.33731624,0.00016438,2]
[401990986,1768444240922,-3000.0,0.00016438,2]
[401990987,1768444240932,-3000.0,0.00016438,2]
[401990988,1768444240941,-3000.0,0.00016438,2]
[401990989,1768444240950,-200.0,0.00016473,2]
[401990990,1768444240959,-3500.0,0.0001656,2]
[401990991,1768444240968,-3500.0,0.0001656,2]
[401990992,1768444240976,-3000.0,0.0001656,2]
[401990993,1768444240985,-3500.0,0.0001656,2]
[401990994,1768444240994,-3500.0,0.0001656,2]
[401990995,1768444241004,-3000.0,0.0001656,2]
[401990996,1768444241013,-699.62611499,0.0001656,2]
[401990997,1768444241022,-1800.0,0.0001696,2]
[401990998,1768444241031,-270.0,0.00016986,2]
[401990999,1768444241040,-1592.36053043,0.00016986,2]
[401991000,1768444241048,-3000.0,0.00016986,2]
[401991001,1768444241057,-3500.0,0.00016986,2]
[401991002,1768444241066,-95495.19683532,0.00017,2]
[401991003,1768444241074,-275.0,0.00017051,2]
[401991004,1768444241083,-1899.25638887,0.00017108,2]
[401991005,1768444241092,-3500.0,0.00017108,2]
[401991006,1768444241101,-3500.0,0.00017108,2]
[401991007,1768444241109,-1424.53884676,0.00017108,2]
[401991008,1768444241118,-350.0,0.00017205,2]
[401991009,1768444241127,-174.61810744,0.00017534,2]
[401991010,1768444241135,-400.0,0.00017534,2]
[401991011,1768444241144,-4000.0,0.00017534,2]
[401991012,1768444241152,-2137.737605,0.000176,2]
[401991013,1768444241161,-239.82105911,0.00017699,2]
[401991014,1768444241170,-400.49564082,0.00017842,2]
[401991015,1768444241179,-461.67526834,0.00017856,2]
[401991016,1768444241189,-168.3888056,0.00017856,2]
[401991017,1768444241197,-500.0,0.00017856,2]
[401991018,1768444241207,-174.61919141,0.00017856,2]
[401991019,1768444241216,-500.0,0.00017856,2]
[401991020,1768444241226,-181.08010149,0.00017856,2]
[401991021,1768444241235,-500.0,0.00017856,2]
[401991022,1768444241244,-187.78006525,0.00017856,2]
[401991023,1768444241253,-194.72792766,0.00017856,2]
[401991024,1768444241262,-201.93286099,0.00017856,2]
[401991025,1768444241272,-209.40437684,0.00017856,2]
[401991026,1768444241282,-500.0,0.00017856,2]
[401991027,1768444241291,-217.15233878,0.00017856,2]
[401991028,1768444241300,-500.0,0.00017856,2]
[401991029,1768444241309,-225.18697532,0.00017856,2]
[401991030,1768444241318,-500.0,0.00017856,2]
[401991031,1768444241327,-233.51889341,0.00017856,2]
[401991032,1768444241337,-500.0,0.00017856,2]
[401991033,1768444241347,-242.15909246,0.00017856,2]
[401991034,1768444241356,-500.0,0.00017856,2]
[401991035,1768444241366,-251.11897888,0.00017856,2]
[401991036,1768444241377,-500.0,0.00017856,2]
[401991037,1768444241386,-260.4103811,0.00017856,2]
[401991038,1768444241396,-500.0,0.00017856,2]
[401991039,1768444241405,-270.0455652,0.00017856,2]
[401991040,1768444241415,-500.0,0.00017856,2]
[401991041,1768444241426,-500.0,0.00017856,2]
[401991042,1768444241435,-280.03725112,0.00017856,2]
[401991043,1768444241444,-500.0,0.00017856,2]
[401991044,1768444241453,-290.39862941,0.00017856,2]
[401991045,1768444241462,-500.0,0.00017856,2]
[401991046,1768444241471,-301.1433787,0.00017856,2]
[401991047,1768444241481,-500.0,0.00017856,2]
[401991048,1768444241490,-500.0,0.00017856,2]
[401991049,1768444241499,-500.0,0.00017856,2]
[401991050,1768444241508,-1000.0,0.00017881,2]
[401991051,1768444241518,-215.52392998,0.00017973,2]
[401991052,1768444241528,-200.0,0.00017973,2]
[401991053,1768444241541,-246.51264384,0.00017973,2]
[401991054,1768444241551,-150533.53666002,0.00018,2]
[401991055,1768444241559,-42930.63117231,0.00018,5]
[401991056,1768444241569,-4500.0,0.00018082,2]
[401991057,1768444241578,-200.0,0.0001811,2]
[401991058,1768444241744,-467.37949951,0.00018155,2]
[401991059,1768444241755,-478.75725327,0.00018404,2]
[401991060,1768444241768,-434.28872166,0.00018534,2]
[401991061,1768444241778,-1041.66666667,0.00018616,2]
[401991062,1768444241787,-600.0,0.0001863,2]
[401991063,1768444241797,-5000.0,0.0001863,2]
[401991064,1768444241807,-231538.94785161,0.000189,5]
[401991065,1768444241816,-228.56967,0.000189,2]
[401991066,1768444241826,-228.56967,0.000189,2]
[401991067,1768444241836,-228.56967,0.000189,2]
[401991068,1768444241846,-228.56967,0.000189,2]
[401991069,1768444241855,-151.0,0.000189,2]
[401991070,1768444241864,-151.0,0.000189,2]
[401991071,1768444241874,-496.47127164,0.00018952,2]
[401991072,1768444241884,-2603.49,0.00019,2]
[401991073,1768444241893,-17971.62577283,0.00019,2]
[401991074,1768444241903,-507.2385,0.00019178,2]
[401991075,1768444241912,-200.0,0.00019178,2]
[401991076,1768444241922,-507.2385,0.00019178,2]
[401991077,1768444241931,-328.95,0.00019178,2]
[401991078,1768444241940,-507.2385,0.00019178,2]
[401991079,1768444241950,-507.2385,0.00019178,2]
[401991080,1768444241959,-507.2385,0.00019178,2]
[401991081,1768444241968,-507.24,0.00019178,2]
[401991082,1768444241977,-507.24,0.00019178,2]
[401991083,1768444241987,-845.3974,0.00019178,2]
[401991084,1768444241996,-845.3974,0.00019178,2]
[401991085,1768444242006,-402.33,0.00019178,2]
[401991086,1768444242015,-5500.0,0.00019178,2]
[401991087,1768444242025,-159.45,0.000192,2]
[401991088,1768444242035,-181.45,0.000192,2]
[401991089,1768444242044,-3517.33,0.000192,2]
[401991090,1768444242053,-24270.08,0.000192,2]
[401991091,1768444242063,-501.47727342,0.00019205,5]
[401991092,1768444242072,-514.84070869,0.000195,2]
[401991093,1768444242081,-167.84,0.000195,2]
[401991094,1768444242091,-1000.0,0.00019669,2]
[401991095,1768444242102,-244.0,0.00019669,2]
[401991096,1768444242112,-800.0,0.00019726,2]
[401991097,1768444242122,-250.0,0.00019726,2]
[401991098,1768444242132,-250.0,0.00019726,2]
[401991100,1768444242142,-2385.69742616,0.00019726,2]
[401991102,1768444242153,-617.0,0.00019959,2]
[401991104,1768444242164,-500.0,0.0002,30]
[401991106,1768444242175,-204.088,0.0002,2]
[401991108,1768444242185,-300.0,0.0002,2]
[401991109,1768444242195,-151.61289297,0.0002,2]
[401991110,1768444242213,-673.76243356,0.0002,2]
[401991111,1768444242233,-14705.33653073,0.0002,2]
[401991112,1768444242245,-40884.57390497,0.0002,20]
[401991114,1768444242255,-371.70783332,0.0002,2]
[401991115,1768444242265,-1415.27019281,0.0002,2]
[401991116,1768444242274,-163545.94707751,0.0002,7]
[401991117,1768444242283,-830.99429922,0.0002,2]
[401991118,1768444242294,-77874.55190809,0.0002,2]
[401991119,1768444242305,-809.68655087,0.0002,2]
[401991120,1768444242314,-53977.67873183,0.0002,7]
[401991123,1768444242599,-358.96523988,0.0002,7]
[401991124,1768444242611,-576.35107221,0.0002,7]
[401991125,1768444242626,-1023.59729684,0.0002,7]
[401991130,1768444242877,-388.51668446,0.00013173,2]
[401991134,1768444243038,-1085.44972965,0.00013173,2]
[401991144,1768444245744,-6037.16192741,0.00013173,2]
[401991145,1768444245755,-1213.18515682,0.00016338,2]
[401991146,1768444245768,-1213.1851568,0.00017929,2]
[401991147,1768444245778,-9303.03564807,0.0002,7]
[401991148,1768444245790,-1428.78480922,0.0002,7]
[401991160,1768444330038,785.0,0.00027397,120]
[401991170,1768444581292,303.15931,0.00027397,120]
[401991176,1768444748058,1000.0,0.00027397,120]
[401991182,1768444880631,500.0,0.00027397,120]
[401991185,1768444907682,316.4467221,0.00027397,120]
[401991187,1768445130413,897.73589349,0.00027397,120]
[401991188,1768445202258,500.0,0.00027397,120]
[401991189,1768445299742,752.0,0.00027397,120]
[401991237,1768445431792,-398.86334884,0.00012478,2]
[401991239,1768445431802,-579.24314516,0.00012478,2]
[401991241,1768445431813,-16.75685484,0.00012478,2]
[401991243,1768445431822,-300.0,0.00012491,2]
[401991245,1768445431832,-300.0,0.00012491,2]
[401991247,1768445431841,-161.72990094,0.00012491,2]
[401991249,1768445431852,-451.39396205,0.00012491,2]
[401991251,1768445431863,-567.38540558,0.00012491,2]
[401991254,1768445431875,-19.49073143,0.00012491,2]
[401991256,1768445431884,-7997.21316422,0.00012492,2]
[401991258,1768445431897,-2002.78683578,0.00012492,2]
[401991260,1768445431906,-300.0,0.00012579,2]
[401991263,1768445431915,-252.136235,0.0001268,2]
[401991266,1768445431924,-500.0,0.00013069,2]
[401991269,1768445431934,-324.23446773,0.00013069,2]
[401991272,1768445431943,-161.77523081,0.00013069,2]
[401991275,1768445431952,-500.0,0.00013069,2]
[401991277,1768445431961,-500.0,0.00013069,2]
[401991279,1768445431971,-484.16804437,0.00013069,2]
[401991281,1768445431980,-226.84454622,0.00013069,2]
[401991283,1768445431989,-300.0,0.0001327,2]
[401991285,1768445431999,-161.14886831,0.00013273,2]
[401991287,1768445432008,-300.0,0.0001333,2]
[401991289,1768445432018,-300.0,0.0001333,2]
[401991291,1768445432028,-300.0,0.0001333,2]
[401991293,1768445432037,-300.0,0.0001333,2]
[401991295,1768445432046,-300.0,0.0001333,2]
[401991297,1768445432055,-300.0,0.0001333,2]
[401991299,1768445432064,-300.0,0.0001333,2]
[401991301,1768445432073,-300.0,0.0001333,2]
[401991303,1768445432082,-300.0,0.0001333,2]
[401991305,1768445432091,-300.0,0.0001333,2]
[401991307,1768445432100,-300.0,0.0001333,2]
[401991309,1768445432111,-300.0,0.0001333,2]
[401991311,1768445432120,-300.0,0.0001333,2]
[401991313,1768445432130,-300.0,0.0001333,2]
[401991315,1768445432139,-300.0,0.0001333,2]
[401991317,1768445432149,-85.42296585,0.00013596,2]
[401991319,1768445432161,-514.57703415,0.00013596,2]
[401991321,1768445432170,-500.0,0.00013699,2]
[401991323,1768445432179,-500.0,0.00013699,2]
[401991325,1768445432188,-500.0,0.00013699,2]
[401991327,1768445432197,-500.0,0.00013699,2]
[401991329,1768445432206,-500.0,0.00013699,2]
[401991331,1768445432215,-420.0,0.00013706,2]
[401991333,1768445432224,-1000.0,0.00013972,2]
[401991335,1768445432235,-276.42921064,0.00014246,2]
[401991337,1768445432244,-325.29111599,0.00014247,2]
[401991339,1768445432253,-1000.0,0.00014247,2]
[401991341,1768445432262,-1000.0,0.00014247,2]
[401991343,1768445432271,-1000.0,0.00014247,2]
[401991345,1768445432280,-500.0,0.00014247,2]
[401991347,1768445432289,-297.5207573,0.0001468,2]
[401991349,1768445432298,-1095.67094356,0.00014795,2]
[401991380,1768445437900,-404.32905644,0.00014795,2]
[401991381,1768445437909,-1074.12082007,0.00014795,2]
[401991382,1768445437953,-425.87917993,0.00014795,2]
[401991383,1768445437963,-885.69742616,0.00014795,2]
[401991384,1768445437973,-720.0,0.00014955,2]
[401991385,1768445437982,-587.0,0.00015038,2]
[401991386,1768445437991,-589.243937,0.00015068,2]
[401991387,1768445438001,-603.74972312,0.00015342,2]
[401991388,1768445438010,-1502.36076743,0.00015342,2]
[401991389,1768445438019,-333.18,0.00015464,2]
[401991390,1768445438028,-10000.0,0.00015808,2]
[401991391,1768445438038,-10000.0,0.00015808,2]
[401991392,1768445438047,-500.0,0.00016438,2]
[401991393,1768445438056,-500.0,0.00016438,2]
[401991394,1768445438066,-257.65006096,0.00016438,2]
[401991395,1768445438075,-864.0,0.00016451,2]
[401991396,1768445438085,-478.62904639,0.000165,2]
[401991397,1768445438097,-344.37095361,0.000165,2]
[401991398,1768445438109,-342.9052796,0.0001668,2]
[401991399,1768445438118,-155.39,0.00017435,2]
[401991400,1768445438128,-1000.0,0.00018096,2]
[401991401,1768445438137,-1152.0,0.00018105,2]
[401991402,1768445438147,-589.243937,0.00018493,2]
[401991403,1768445438157,-1041.66666667,0.00018614,2]
[401991404,1768445438166,-388.2898019,0.0001868,2]
[401991405,1768445438176,-303.10001603,0.000189,2]
[401991406,1768445438186,-303.10001605,0.000189,2]
[401991407,1768445438196,-303.10001603,0.00019089,2]
[401991408,1768445438205,-265.57912852,0.00019089,2]
[401991409,1768445438214,-1276.73687244,0.00019114,5]
[401991410,1768445438224,-8973.46874196,0.00019114,5]
[401991411,1768445438233,-167.84,0.000192,2]
[401991412,1768445438242,-187.92923551,0.00019278,2]
[401991413,1768445438251,-449.76785147,0.0001928,2]
[401991414,1768445438261,-163.27,0.00019669,2]
[401991415,1768445438270,-250.0,0.00019726,2]
[401991416,1768445438280,-250.0,0.00019726,2]
[401991417,1768445438289,-500.0,0.0001977,2]
[401991418,1768445438300,-461.67526834,0.0001977,2]
[401991419,1768445438310,-500.0,0.0001977,2]
[401991420,1768445438319,-500.0,0.0001977,2]
[401991421,1768445438328,-500.0,0.0001977,2]
[401991422,1768445438338,-500.0,0.0001977,2]
[401991423,1768445438347,-500.0,0.0001977,2]
[401991424,1768445438357,-168.3888056,0.0001977,2]
[401991425,1768445438366,-500.0,0.0001977,2]
[401991426,1768445438375,-174.61919141,0.0001977,2]
[401991427,1768445438385,-500.0,0.0001977,2]
[401991428,1768445438395,-181.08010149,0.0001977,2]
[401991429,1768445438404,-500.0,0.0001977,2]
[401991430,1768445438413,-187.78006525,0.0001977,2]
[401991431,1768445438423,-500.0,0.0001977,2]
[401991432,1768445438433,-194.72792766,0.0001977,2]
[401991433,1768445438442,-500.0,0.0001977,2]
[401991434,1768445438451,-201.93286099,0.0001977,2]
[401991435,1768445438461,-500.0,0.0001977,2]
[401991436,1768445438470,-209.40437684,0.0001977,2]
[401991437,1768445438480,-500.0,0.0001977,2]
[401991438,1768445438490,-217.15233878,0.0001977,2]
[401991439,1768445438499,-500.0,0.0001977,2]
[401991440,1768445438509,-225.18697532,0.0001977,2]
[401991441,1768445438519,-500.0,0.0001977,2]
[401991442,1768445438528,-233.51889341,0.0001977,2]
[401991443,1768445438536,-500.0,0.0001977,2]
[401991444,1768445438546,-242.15909246,0.0001977,2]
[401991445,1768445438557,-500.0,0.0001977,2]
[401991446,1768445438567,-251.11897888,0.0001977,2]
[401991447,1768445438576,-260.4103811,0.0001977,2]
[401991448,1768445438585,-270.0455652,0.0001977,2]
[401991449,1768445438595,-280.03725112,0.0001977,2]
[401991450,1768445438605,-290.39862941,0.0001977,2]
[401991451,1768445438614,-301.1433787,0.0001977,2]
[401991452,1768445438623,-9776.04250985,0.00019783,2]
[401991453,1768445438635,-2635.25177382,0.00019783,2]
[401991454,1768445438650,-14340.63041053,0.00019783,2]
[401991459,1768445440104,-250.77106545,0.00015369,2]
[401991460,1768445440122,-49.22893455,0.00015369,2]
[401991461,1768445440132,-5460.8574942,0.00019783,2]
[401991462,1768445440143,-650.76259487,0.00019783,2]
[401991491,1768445443242,-300.0,0.00015369,2]
[401991492,1768445443252,-300.0,0.00015369,2]
[401991493,1768445443261,-300.0,0.00015369,2]
[401991494,1768445443270,-300.0,0.00015369,2]
[401991495,1768445443280,-300.0,0.00015369,2]
[401991496,1768445443289,-300.0,0.00015369,2]
[401991498,1768445443299,-10640.19160463,0.00019783,2]
[401991501,1768445443308,-507.2385,0.00019783,2]
[401991505,1768445443316,-338.1515,0.00019783,3]
[401991508,1768445443325,-507.2385,0.00019783,2]
[401991511,1768445443334,-507.2385,0.00019783,3]
[401991513,1768445443343,-500.01,0.00019783,2]
[401991515,1768445443352,-507.2385,0.00019783,2]
[401991517,1768445443362,-492.7615,0.00019783,3]
[401991519,1768445443371,-180.0,0.00019865,2]
[401991520,1768445443380,-81.91433029,0.00019935,2]
[401991782,1768445519931,500.0,0.00027397,120]
[401991783,1768445550794,1764.09,0.00027397,120]
[401991789,1768445839620,500.0,0.00027397,120]
[401991790,1768446155624,500.0,0.00027397,120]
[401991793,1768446429265,1928.0,0.00027397,120]
[401991794,1768446472227,500.0,0.00027397,120]
[401991796,1768446493068,155.0,5e-05,2]
[401991848,1768446638194,-226.51919352,0.0001297,2]
[401991850,1768446638204,-604.0,0.0001297,2]
[401991852,1768446638214,-300.0,0.00013228,2]
[401991854,1768446638224,-300.0,0.00013228,2]
[401991856,1768446638233,-300.0,0.00013228,2]
[401991858,1768446638242,-300.0,0.00013228,2]
[401991860,1768446638251,-300.0,0.00013228,2]
[401991862,1768446638261,-300.0,0.00013228,2]
[401991864,1768446638271,-300.0,0.00013228,2]
[401991867,1768446638291,-300.0,0.00013228,2]
[401991869,1768446638301,-300.0,0.00013228,2]
[401991871,1768446638311,-300.0,0.00013228,2]
[401991874,1768446638321,-300.0,0.00013228,2]
[401991876,1768446638331,-300.0,0.00013228,2]
[401991878,1768446638340,-300.0,0.00013228,2]
[401991880,1768446638350,-300.0,0.00013228,2]
[401991882,1768446638360,-300.0,0.00013228,2]
[401991884,1768446638369,-500.0,0.00013273,2]
[401991886,1768446638379,-500.0,0.00013273,2]
[401991887,1768446638388,-600.0,0.00013492,2]
[401991888,1768446638398,-500.0,0.00013699,2]
[401991889,1768446638407,-500.0,0.00013699,2]
[401991890,1768446638417,-588.20360307,0.00013821,2]
[401991891,1768446638426,-1000.0,0.00013821,2]
[401991892,1768446638436,-164.90756049,0.00014189,2]
[401991893,1768446638445,-13167.582072,0.0001419,2]
[401991894,1768446638455,-1000.0,0.00014247,2]
[401991895,1768446638465,-1000.0,0.00014247,2]
[401991896,1768446638480,-1500.0,0.00014368,2]
[401991897,1768446638489,-414.6506363,0.00014795,2]
[401991898,1768446638499,-1500.0,0.00014795,2]
[401991899,1768446638508,-720.0,0.00014841,2]
[401991900,1768446638518,-2000.0,0.00014916,2]
[401991901,1768446638528,-267.29264835,0.0001497,2]
[401991902,1768446638539,-2610.17582762,0.00015,2]
[401991903,1768446638549,-2000.0,0.00015342,2]
[401991904,1768446638559,-1000.0,0.00015464,2]
[401991905,1768446638568,-2500.0,0.0001589,2]
[401991906,1768446638578,-864.0,0.00016325,2]
[401991907,1768446638588,-3000.0,0.00016438,2]
[401991908,1768446638597,-308.06610319,0.0001697,2]
[401991909,1768446638608,-500.0,0.00016986,2]
[401991910,1768446638618,-157.65652764,0.0001782,2]
[401991911,1768446638627,-1000.0,0.00017957,2]
[401991912,1768446638637,-402.33,0.00018,2]
[401991913,1768446638647,-5101.84054227,0.00018055,2]
[401991914,1768446638657,-157.65652763,0.00018371,2]
[401991915,1768446638666,-193.50044745,0.00018627,2]
[401991916,1768446638676,-500.0,0.00018627,2]
[401991917,1768446638685,-380.35504268,0.00018627,2]
[401991918,1768446638695,-1041.66666667,0.00018628,2]
[401991919,1768446638704,-303.10001603,0.000189,2]
[401991920,1768446638713,-303.10001603,0.000189,2]
[401991921,1768446638723,-348.83955802,0.0001897,2]
[401991922,1768446638732,-1413.91890106,0.00018989,2]
[401991923,1768446638742,-100000.0,0.0001899,2]
[401991924,1768446638751,-303.10001603,0.00019089,2]
[401991925,1768446638760,-1413.91890104,0.00019255,2]
[401991926,1768446638770,-177.17,0.000193,2]
[401991927,1768446638779,-201.61,0.000193,2]
[401991928,1768446638789,-167.84,0.000193,2]
[401991929,1768446638798,-1413.91890104,0.0001952,2]
[401991930,1768446638807,-507.2385,0.00019619,2]
[401991931,1768446638816,-507.2385,0.00019619,3]
[401991932,1768446638826,-507.2385,0.00019619,2]
[401991933,1768446638835,-507.2385,0.00019619,3]
[401991934,1768446638844,-200.0,0.00019619,2]
[401991935,1768446638855,-507.2385,0.00019619,2]
[401991936,1768446638864,-507.2385,0.00019619,3]
[401991937,1768446638873,-507.2385,0.00019619,2]
[401991938,1768446638883,-507.2385,0.00019619,3]
[401991939,1768446638892,-507.2385,0.00019619,2]
[401991940,1768446638901,-507.2385,0.00019619,3]
[401991941,1768446638911,-507.2385,0.00019619,2]
[401991942,1768446638920,-507.2385,0.00019619,3]
[401991943,1768446638929,-204373.72935587,0.0001962,2]
[401991944,1768446638939,-507.2385,0.0001962,2]
[401991945,1768446638949,-32627.8022909,0.00019623,2]
[401991946,1768446638958,-171.434,0.00019685,2]
[401991947,1768446638967,-3924.84,0.000197,2]
[401991948,1768446638977,-201.03509286,0.00019726,2]
[401991949,1768446638986,-250.0,0.00019726,2]
[401991950,1768446638996,-1000.0,0.00019753,2]
[401991951,1768446639005,-244.0,0.00019753,2]
[401991952,1768446639014,-661.2,0.00019867,2]
[401991953,1768446639023,-341.96135736,0.00019925,2]
[401991954,1768446639033,-1367.84542944,0.00019925,2]
[401991955,1768446639042,-3077.65221625,0.00019925,2]
[401991956,1768446639051,-5471.38171777,0.00019925,2]
[401991957,1768446639060,-8549.03393402,0.00019925,2]
[401991958,1768446639070,-667.84655976,0.00019925,2]
[401991959,1768446639079,-2671.38623904,0.00019925,2]
[401991960,1768446639089,-6004.6084188,0.00019925,2]
[401991961,1768446639099,-8558.01942449,0.0002,7]
[401991962,1768446639109,-202.78888562,0.0002,2]
[401991963,1768446639118,-207.0,0.0002,10]
[401991964,1768446639128,-504.42217489,0.0002,2]
[401991965,1768446639137,-1173.41002154,0.0002,10]
[401991966,1768446639147,-17589.09684293,0.0002,2]
[401991967,1768446639158,-5000.0,0.0002,2]
[401991968,1768446639167,-500.0,0.0002,2]
[401991969,1768446639177,-502.66,0.0002,2]
[401991970,1768446639187,-2000.0,0.0002,2]
[401991971,1768446639196,-300.0,0.0002,2]
[401991973,1768446639205,-151.61289297,0.0002,2]
[401991975,1768446639214,-4567.19446589,0.00020084,5]
[401991976,1768446639224,-511.80409202,0.0002013,2]
[401991978,1768446639233,-558.39585431,0.00020259,2]
[401991979,1768446639242,-168.3888056,0.00020259,2]
[401991980,1768446639252,-461.67526834,0.00020259,2]
[401991981,1768446639261,-174.61919141,0.00020259,2]
[401991982,1768446639271,-181.08010149,0.00020259,2]
[401991984,1768446639280,-187.78006525,0.00020259,2]
[401991985,1768446639289,-194.72792766,0.00020259,2]
[401991986,1768446639299,-201.93286099,0.00020259,2]
[401991987,1768446639308,-209.40437684,0.00020259,2]
[401991988,1768446639317,-217.15233878,0.00020259,2]
[401991989,1768446639327,-225.18697532,0.00020259,2]
[401991990,1768446639337,-233.51889341,0.00020259,2]
[401991991,1768446639346,-242.15909246,0.00020259,2]
[401991992,1768446639355,-251.11897888,0.00020259,2]
[401991993,1768446639364,-260.4103811,0.00020259,2]
[401991994,1768446639374,-270.0455652,0.00020259,2]
[401991995,1768446639383,-280.03725112,0.00020259,2]
[401991997,1768446639392,-290.39862941,0.00020259,2]
[401991999,1768446639402,-301.1433787,0.00020259,2]
[401992001,1768446639411,-350.0,0.00020274,2]
[401992002,1768446639421,-754.4022892,0.00020305,2]
[401992003,1768446639430,-507.2385,0.00020411,5]
[401992004,1768446639439,-507.2385,0.00020411,5]
[401992005,1768446639449,-507.2385,0.00020411,5]
[401992006,1768446639458,-507.2385,0.00020411,5]
[401992007,1768446639467,-507.2385,0.00020411,5]
[401992008,1768446639477,-507.2385,0.00020411,5]
[401992009,1768446639486,-377.5822533,0.00020429,2]
[401992010,1768446639495,-377.5822533,0.00020429,2]
[401992011,1768446639505,-377.5822533,0.00020429,2]
[401992012,1768446639515,-377.5822533,0.00020429,2]
[401992013,1768446639524,-764.0942954,0.00020429,2]
[401992014,1768446639533,-2873.755508,0.00020548,2]
[401992015,1768446639543,-507.2385,0.00020548,2]
[401992016,1768446639553,-507.2315,0.00020548,3]
[401992017,1768446639562,-1389.77677261,0.0002061,2]
[401992018,1768446639572,-661.2,0.00020801,2]
[401992019,1768446639582,-478.75725327,0.00020807,2]
[401992020,1768446639591,-450.0,0.00020822,2]
[401992021,1768446639600,-256.56391009,0.000209,2]